bitfinex-derivatives/quotes_ETHF0:USTF0_20250217
["timestamp","ask_amount","ask_price","bid_price","bid_amount"]
[1739791642596,0.72795,2747.3,2747.1,0.72799]
[1739791644299,3.12227216,2747.4,2747.0,3.2078]
[1739791644597,0.728,2747.2,2747.0,3.2078]
[1739791644991,0.728,2747.2,2747.0,3.93581]
[1739791645389,0.728,2747.1,2747.0,3.2078]
[1739791645592,0.728,2747.1,2746.9,1.1326607]
[1739791645593,3.12227216,2747.1,2746.9,0.5611607]
[1739791645897,9.60749286,2747.3,2746.9,0.0054607]
[1739791646197,8.87953286,2747.3,2746.9,0.0054607]
[1739791646496,8.87953286,2747.3,2746.9,0.5397607]
[1739791646698,0.72802,2747.1,2746.9,1.1076607]
[1739791646898,0.72803,2747.0,2746.9,1.1076607]
[1739791648798,3.85030216,2747.0,2746.9,0.0054607]
[1739791649401,4.38560216,2747.0,2746.9,0.0054607]
[1739791649901,7.59340216,2747.0,2746.9,0.0054607]
[1739791650097,8.12740216,2747.0,2746.9,0.0054607]
[1739791652795,0.72819,2746.5,2746.2,0.5679]
[1739791652995,0.72819,2746.4,2746.2,1.82812]
[1739791653500,8.92326928,2746.6,2746.2,1.82812]
[1739791653696,0.7282,2746.4,2746.2,1.82812]
[1739791654805,0.7282,2746.4,2746.2,1.0999]
[1739791655503,0.72821,2746.3,2746.2,1.0999]
[1739791657496,0.72817,2746.5,2746.3,0.72821]
[1739791657697,6.46479712,2746.6,2746.4,0.72817]
[1739791657996,3.2078,2746.6,2746.5,0.72816]
[1739791659504,5.66627216,2747.0,2746.4,3.2078]
[1739791659804,0.72806,2746.9,2746.7,0.72809]
[1739791659996,0.72806,2746.9,2746.8,1.1393]
[1739791661006,0.72806,2746.9,2746.8,0.5743]
[1739791661208,0.72813,2746.6,2746.5,0.565]
[1739791661696,3.25699712,2746.7,2746.5,0.565]
[1739791661889,3.25699712,2746.7,2746.5,1.29315]
[1739791661890,0.72813,2746.6,2746.5,1.29315]
[1739791662293,0.72813,2746.6,2746.5,0.565]
[1739791662504,0.72813,2746.6,2746.5,1.29316]
[1739791663305,0.72813,2746.6,2746.5,0.565]
[1739791664504,6.37926928,2746.7,2746.5,0.565]
[1739791664704,7.10737928,2746.7,2746.6,0.72813]
[1739791665404,6.37926928,2746.7,2746.6,0.72813]
[1739791665704,7.10737928,2746.7,2746.6,0.72813]
[1739791665908,3.25699712,2746.7,2746.6,0.72813]
[1739791668907,2.38179712,2746.7,2746.6,0.72813]
[1739791670600,1e-08,2746.7,2746.6,6.72813]
[1739791670803,0.0054607,2747.3,2747.2,0.72797]
[1739791671006,3.2078,2747.9,2747.6,0.72785]
[1739791671007,7.05787216,2747.9,2747.6,0.72785]
[1739791671204,3.26982,2747.8,2747.6,0.72785]
[1739791671511,3.25593685,2747.7,2747.6,3.93565]
[1739791674414,0.0054607,2747.9,2747.6,9.2078]
[1739791674605,40.8,2749.1,2747.7,0.5527]
[1739791674606,2.542,2748.6,2747.7,0.5527]
[1739791674807,0.5299,2748.5,2748.4,0.72766]
[1739791675003,0.72756,2748.8,2748.3,3.2078]
[1739791675004,2.542,2748.8,2748.3,3.2078]
[1739791675202,3.2078,2749.0,2748.6,3.2078]
[1739791675410,3.2078,2749.0,2748.9,0.72752]
[1739791675606,2.542,2749.2,2748.9,3.2078]
[1739791675909,2.5474607,2749.2,2749.1,0.72747]
[1739791676111,0.0054607,2749.2,2749.1,0.72747]
[1739791677408,5.66327216,2749.9,2749.1,7.84757435]
[1739791677609,5.66327216,2749.9,2749.6,0.72733]
[1739791678709,5.66327216,2749.9,2749.4,3.2078]
[1739791678909,5.66327216,2749.9,2749.5,0.72736]
[1739791679117,5.66327216,2749.9,2749.5,0.72735]
[1739791679817,6.39053216,2749.9,2749.5,0.72735]
[1739791680324,5.66327216,2749.9,2749.1,3.2078]
[1739791680514,3.12227216,2749.6,2749.1,3.2078]
[1739791680812,3.84962216,2749.6,2749.2,0.72744]
[1739791681207,0.7274,2749.4,2749.1,3.2078]
[1739791681717,3.12227216,2749.6,2749.2,0.72743]
[1739791681718,0.72738,2749.5,2749.2,0.72743]
[1739791681907,3.12227216,2749.6,2749.1,3.2078]
[1739791682108,5.66327216,2749.9,2749.4,3.2078]
[1739791682613,0.72743,2749.3,2749.1,7.57213062]
[1739791682813,0.72743,2749.3,2749.0,3.7777]
[1739791683017,0.5422,2749.5,2749.0,3.7777]
[1739791683323,0.72746,2749.2,2749.0,3.2078]
[1739791683521,0.5422,2749.5,2749.0,3.2078]
[1739791683820,3.0822,2749.5,2749.0,3.2078]
[1739791684014,0.72745,2749.2,2749.0,3.2078]
[1739791685014,0.72742,2749.3,2749.0,3.93527]
[1739791685320,0.72739,2749.4,2749.0,3.93527]
[1739791685519,3.0822,2749.5,2749.0,3.2078]
[1739791685716,0.72747,2749.1,2749.0,3.2078]
[1739791686012,3.0822,2749.5,2749.0,3.2078]
[1739791686013,0.5634,2749.4,2749.0,3.2078]
[1739791686219,0.72745,2749.2,2749.0,3.93529]
[1739791686424,3.12227216,2749.3,2748.8,0.0054607]
[1739791686814,0.72752,2748.9,2748.8,0.0054607]
[1739791687316,1.28962,2748.9,2748.8,0.0054607]
[1739791687512,0.5621,2748.9,2748.3,3.2078]
[1739791687714,0.72766,2748.4,2748.0,3.2078]
[1739791687916,3.12227216,2748.5,2748.1,3.2078]
[1739791688116,2.539,2748.6,2748.4,0.72764]
[1739791688621,2.539,2748.6,2748.1,3.2078]
[1739791688814,2.539,2748.6,2748.5,0.72763]
[1739791689316,2.539,2748.6,2748.2,0.0054607]
[1739791689718,2.539,2748.6,2748.4,0.72764]
[1739791690215,2.539,2748.6,2748.5,0.72763]
[1739791690616,0.0054607,2748.8,2748.7,0.72758]
[1739791691923,0.0054607,2748.8,2748.3,1.81922]
[1739791692123,0.72759,2748.7,2748.2,0.5875607]
[1739791692317,0.72761,2748.6,2748.4,0.72764]
[1739791692722,0.72759,2748.7,2748.4,0.72764]
[1739791692926,0.0054607,2748.8,2748.2,0.0054607]
[1739791693122,0.72764,2748.5,2748.2,0.7331607]
[1739791693821,4.38330216,2748.6,2748.3,0.72768]
[1739791694025,4.38330216,2748.6,2748.4,0.72765]
[1739791694323,0.5334,2748.6,2748.5,0.72763]
[1739791694819,0.0054607,2748.8,2748.2,0.0054607]
[1739791695018,0.7330207,2748.8,2748.2,0.0054607]
[1739791695219,0.7330207,2748.8,2748.5,0.72761]
[1739791695520,0.0054607,2748.8,2748.2,0.0054607]
[1739791695720,0.0054607,2748.8,2748.7,0.72758]
[1739791696726,0.7330107,2748.8,2748.7,0.72758]
[1739791696926,0.0054607,2748.8,2748.7,0.72758]
[1739791697533,0.7330107,2748.8,2748.7,0.72758]
[1739791698140,0.0054607,2748.8,2748.7,0.72758]
[1739791699337,0.0054607,2748.8,2748.6,3.2078]
[1739791699531,0.0054607,2748.8,2748.4,0.5415]
[1739791699836,0.0054607,2748.8,2748.3,6.85046]
[1739791700141,0.72766,2748.4,2748.3,6.1228]
[1739791700535,0.72766,2748.4,2748.2,0.0054607]
[1739791700744,0.5633,2748.3,2748.2,0.0054607]
[1739791701036,0.5633,2748.3,2748.2,0.7331707]
[1739791702336,0.5633,2748.3,2748.2,0.0054607]
[1739791702541,4.41325216,2748.3,2748.2,0.0054607]
[1739791703941,3.68557216,2748.3,2748.2,0.0054607]
[1739791704935,4.41325216,2748.3,2748.2,0.0054607]
[1739791705136,3.68557216,2748.3,2748.2,0.7331707]
[1739791706533,3.68557216,2748.3,2748.2,0.0054607]
[1739791706735,4.41325216,2748.3,2748.2,0.0054607]
[1739791707241,4.41325216,2748.3,2748.2,0.7331707]
[1739791707942,3.68557216,2748.3,2748.2,0.7331707]
[1739791708440,3.68557216,2748.3,2748.2,0.0054607]
[1739791708441,4.41325216,2748.3,2748.2,0.0054607]
[1739791708637,3.68557216,2748.3,2747.6,6.6956]
[1739791708945,0.72782,2747.8,2747.6,4.50844]
[1739791709441,0.72784,2747.7,2747.6,3.2078]
[1739791710143,0.72784,2747.7,2747.6,3.93567]
[1739791710535,0.72784,2747.7,2747.6,3.2078]
[1739791710743,0.72784,2747.7,2747.6,3.93567]
[1739791711836,0.5709,2747.8,2747.7,0.72783]
[1739791713341,3.12227216,2748.0,2747.9,0.72779]
[1739791713835,3.69637216,2748.3,2748.2,0.72771]
[1739791714036,3.12227216,2748.6,2747.9,6.1228]
[1739791714242,3.12227216,2748.6,2748.2,3.2078]
[1739791714436,3.12227216,2748.6,2748.3,0.5302]
[1739791714638,3.84989216,2748.6,2748.3,1.25786]
[1739791715237,3.84989216,2748.6,2748.3,0.5302]
[1739791715438,3.84989216,2748.6,2748.4,0.72765]
[1739791716145,3.84989216,2748.6,2748.3,1.25786]
[1739791716542,3.12227216,2748.6,2748.2,3.2078]
[1739791716746,4.23327216,2748.6,2748.2,3.2078]
[1739791716946,0.72764,2748.5,2748.3,0.72768]
[1739791717442,0.7277,2748.3,2748.0,1.27335]
[1739791717635,0.7277,2748.3,2748.2,3.2078]
[1739791718244,0.7277,2748.3,2747.9,2.915]
[1739791718245,3.12227216,2748.3,2747.9,2.915]
[1739791718541,3.12227216,2748.3,2747.9,3.4606]
[1739791718750,0.72771,2748.2,2748.0,0.72775]
[1739791719345,0.72771,2748.2,2747.9,3.4606]
[1739791719539,3.70087216,2748.3,2747.9,4.18838]
[1739791719741,0.72776,2748.1,2747.8,0.7278]
[1739791720045,3.70087216,2748.3,2747.8,0.7278]
[1739791720348,0.72776,2748.1,2747.9,0.72777]
[1739791720741,3.70087216,2748.3,2748.0,0.72775]
[1739791720742,0.72772,2748.2,2748.0,0.72775]
[1739791721439,4.42856216,2748.3,2748.0,0.72775]
[1739791722047,0.72772,2748.2,2748.0,0.72775]
[1739791722442,1.30629,2748.3,2748.1,0.72772]
[1739791722641,0.72772,2748.2,2747.9,3.2078]
[1739791722842,0.72772,2748.2,2748.1,0.72774]
[1739791724043,0.5786,2748.3,2747.9,3.2078]
[1739791724345,1.30629,2748.3,2748.2,0.72771]
[1739791725149,3.84986216,2748.7,2748.5,0.72762]
[1739791725348,4.43156216,2748.7,2748.6,0.7276]
[1739791725747,4.43156216,2748.7,2748.3,0.5794]
[1739791725748,3.70397216,2748.7,2748.3,0.5794]
[1739791725951,0.72764,2748.5,2748.3,1.30708]
[1739791726649,0.72764,2748.5,2748.4,0.72766]
[1739791726850,0.72764,2748.5,2748.3,1.30706]
[1739791727050,0.72764,2748.5,2748.4,0.72766]
[1739791727246,3.70397216,2748.7,2748.3,0.5794]
[1739791727451,0.72765,2748.5,2748.3,1.30708]
[1739791727952,1.81902,2748.6,2748.1,0.72774]
[1739791728148,0.7277,2748.3,2748.1,0.72774]
[1739791728546,3.12227216,2748.4,2748.0,2.915]
[1739791728747,0.72768,2748.4,2748.0,2.915]
[1739791729053,0.72768,2748.4,2748.2,0.7277]
[1739791729449,3.6491,2748.5,2748.0,2.915]
[1739791729656,0.72773,2748.2,2748.0,3.64276]
[1739791729954,0.72773,2748.2,2748.0,3.64275]
[1739791730155,3.6491,2748.5,2748.0,3.64275]
[1739791730647,3.6491,2748.5,2748.0,2.915]
[1739791730857,0.72774,2748.1,2748.0,2.915]
[1739791731156,0.72774,2748.1,2748.0,3.64276]
[1739791731351,0.72774,2748.1,2748.0,2.915]
[1739791731852,3.12227216,2748.3,2747.9,4.50397]
[1739791732046,0.72775,2748.1,2747.9,3.7762]
[1739791732356,3.84996216,2748.3,2748.1,0.72773]
[1739791732949,3.6491,2748.5,2747.9,3.7762]
[1739791733252,0.72769,2748.3,2748.1,0.72772]
[1739791733851,0.72767,2748.4,2748.2,0.72771]
[1739791734059,0.72768,2748.3,2748.2,0.72771]
[1739791734254,3.6491,2748.5,2747.9,3.7762]
[1739791734754,0.72768,2748.3,2748.2,0.7277]
[1739791735054,0.72776,2748.1,2747.9,4.50398]
[1739791735353,0.72774,2748.1,2748.0,0.72774]
[1739791735750,0.72776,2748.1,2747.9,3.7762]
[1739791735950,0.72776,2748.0,2747.9,4.50397]
[1739791736153,0.72776,2748.0,2747.9,3.7762]
[1739791736549,3.85003216,2748.0,2747.9,3.2078]
[1739791736748,0.72784,2747.7,2747.6,3.93566]
[1739791737048,0.72784,2747.7,2747.6,3.2078]
[1739791738553,3.12227216,2747.7,2747.4,0.5311607]
[1739791738756,3.12227216,2747.7,2747.4,0.0054607]
[1739791738757,0.7279,2747.5,2747.4,0.0054607]
[1739791742160,3.9357,2747.5,2747.4,0.0054607]
[1739791742560,0.7279,2747.5,2747.4,0.0054607]
[1739791743156,3.9357,2747.5,2747.4,0.0054607]
[1739791743863,3.2078,2747.5,2746.8,0.72807]
[1739791744163,0.72803,2747.0,2746.8,0.72807]
[1739791744362,3.12227216,2746.9,2746.6,0.5264]
[1739791744561,0.72811,2746.7,2746.6,0.5264]
[1739791744951,0.7281,2746.8,2746.6,0.5264]
[1739791745359,0.72811,2746.7,2746.6,0.5264]
[1739791745559,0.72811,2746.7,2746.4,3.2132607]
[1739791745760,0.72816,2746.5,2746.4,3.2132607]
[1739791745966,0.72816,2746.5,2746.4,0.0054607]
[1739791748865,1.28446,2746.5,2746.4,0.0054607]
[1739791760872,0.72816,2746.5,2746.4,0.0054607]
[1739791770278,0.72839,2745.7,2745.4,0.72844]
[1739791770474,3.85063216,2745.8,2745.2,0.5451]
[1739791770682,3.12227216,2745.8,2745.4,0.72843]
[1739791770883,3.12227216,2745.8,2745.5,0.72841]
[1739791771085,0.72839,2745.7,2745.4,0.72843]
[1739791771278,0.72843,2745.5,2745.4,0.0054607]
[1739791773479,0.556,2745.7,2745.4,0.0054607]
[1739791773681,0.72843,2745.5,2745.4,0.0054607]
[1739791774183,3.85070216,2745.5,2745.4,0.0054607]
[1739791774588,9.59250216,2745.5,2745.4,0.0054607]
[1739791774881,8.86407216,2745.5,2745.2,0.5254]
[1739791775187,0.72848,2745.3,2745.2,0.5254]
[1739791775488,0.72861,2744.9,2744.6,3.7475]
[1739791775687,3.85087216,2744.9,2744.7,0.5313]
[1739791775876,0.72861,2744.8,2744.7,0.5313]
[1739791776192,3.12227216,2744.9,2744.7,0.5313]
[1739791776193,6.33007216,2744.9,2744.7,0.5313]
[1739791776491,0.72861,2744.8,2744.7,0.5313]
[1739791776677,6.33007216,2744.9,2744.5,0.00364048]
[1739791776884,3.12227216,2744.6,2744.5,0.00364048]
[1739791777077,5.65627216,2744.6,2744.5,0.00364048]
[1739791777885,5.65627216,2744.6,2744.5,0.73233048]
[1739791778286,5.65627216,2744.6,2744.5,0.00364048]
[1739791778490,5.65627216,2744.6,2744.5,0.73233048]
[1739791779091,2.535,2744.9,2744.7,0.72862]
[1739791779488,2.535,2744.9,2744.6,0.5268]
[1739791779489,3.26361,2744.9,2744.6,0.5268]
[1739791779788,2.535,2744.9,2744.7,0.72862]
[1739791780292,2.535,2744.8,2744.7,0.72862]
[1739791780491,3.26361,2744.8,2744.5,0.73232048]
[1739791780689,2.535,2744.8,2744.5,0.00364048]
[1739791780994,2.535,2744.8,2744.6,0.72866]
[1739791781288,3.85091216,2744.7,2744.5,0.73232048]
[1739791781488,3.85091216,2744.7,2744.5,0.00364048]
[1739791781883,0.72866,2744.6,2744.5,0.00364048]
[1739791784585,7.43417216,2744.7,2744.0,3.2078]
[1739791784793,0.72876,2744.3,2744.0,3.93661]
[1739791784994,2.535,2744.3,2744.0,3.93661]
[1739791785193,0.72877,2744.2,2744.0,3.93661]
[1739791785387,3.26376,2744.3,2744.0,3.2078]
[1739791785591,2.535,2744.3,2744.1,0.72879]
[1739791785794,2.535,2744.3,2744.2,0.72877]
[1739791787290,3.12227216,2744.4,2744.0,3.2078]
[1739791787491,2.535,2744.3,2744.2,0.72875]
[1739791787696,3.26376,2744.3,2744.1,0.7288]
[1739791787887,3.81806,2744.3,2744.1,0.7288]
[1739791788087,3.0893,2744.3,2744.0,3.2078]
[1739791788396,0.72885,2744.0,2743.7,0.7289]
[1739791788690,0.72885,2744.0,2743.7,1.268]
[1739791789087,3.12227216,2744.1,2743.7,0.5391]
[1739791789295,0.72883,2744.0,2743.8,0.72887]
[1739791789587,0.72883,2744.0,2743.7,0.5391]
[1739791789588,2.535,2743.9,2743.7,0.5391]
[1739791789889,2.535,2743.9,2743.8,0.72888]
[1739791790393,3.26385,2743.9,2743.7,1.26798]
[1739791790593,3.26385,2743.9,2743.8,0.72888]
[1739791790890,3.26385,2743.9,2743.7,0.5391]
[1739791791088,2.535,2743.9,2743.8,0.72888]
[1739791791688,0.5543,2744.3,2744.1,0.72879]
[1739791791993,2.535,2744.2,2744.1,0.72879]
[1739791792493,3.26379,2744.2,2744.0,0.72881]
[1739791792687,2.535,2744.2,2743.9,3.93665]
[1739791792885,0.72881,2744.1,2743.9,3.93665]
[1739791793087,3.26378,2744.2,2744.0,0.72882]
[1739791793395,2.535,2744.2,2743.9,3.2078]
[1739791793583,3.12227216,2744.0,2743.9,3.2078]
[1739791793894,3.12227216,2744.0,2743.9,3.93665]
[1739791794189,3.12227216,2744.2,2743.9,3.2078]
[1739791794393,2.535,2744.1,2744.0,0.72882]
[1739791794990,0.5543,2744.3,2743.9,3.2078]
[1739791795192,3.0893,2744.3,2744.2,0.72877]
[1739791795690,3.0893,2744.3,2744.0,0.5722]
[1739791795890,3.0893,2744.3,2744.1,0.72879]
[1739791795891,3.81804,2744.3,2744.1,0.72879]
[1739791796491,3.0893,2744.3,2744.1,0.72879]
[1739791796687,3.81806,2744.3,2744.1,0.72879]
[1739791796992,1.28306,2744.3,2744.0,0.5722]
[1739791797192,1.28306,2744.3,2744.1,0.7288]
[1739791797502,0.5543,2744.3,2744.2,0.72877]
[1739791798399,1.28304,2744.3,2744.2,0.72877]
[1739791798698,0.5543,2744.3,2744.2,0.72877]
[1739791799095,1.28304,2744.3,2744.2,0.72877]
[1739791799707,0.5543,2744.3,2744.2,0.72877]
[1739791799998,1.28304,2744.3,2744.2,0.72877]
[1739791800402,0.5543,2744.3,2744.2,0.72877]
[1739791800603,3.2078,2744.7,2744.6,0.72866]
[1739791800798,5.7418,2744.7,2744.6,0.72866]
[1739791801495,3.12227216,2744.8,2744.5,3.2078]
[1739791801698,3.12227216,2744.8,2744.7,0.72864]
[1739791802002,3.12227216,2744.8,2744.5,3.2078]
[1739791802305,0.72866,2744.6,2744.5,3.2078]
[1739791802603,3.26266,2744.6,2744.5,3.2078]
[1739791802900,0.72872,2744.4,2744.3,0.5371]
[1739791803098,3.85099216,2744.4,2744.3,0.5371]
[1739791803402,3.85099216,2744.4,2743.5,2.37465]
[1739791803403,3.12227216,2744.4,2743.7,3.2078]
[1739791803607,3.12227216,2743.9,2743.7,3.2078]
[1739791803903,2.534,2744.0,2743.9,0.72885]
[1739791804396,3.12227216,2744.2,2743.8,0.5659]
[1739791804596,3.12227216,2744.2,2744.0,0.72881]
[1739791804790,0.5793,2744.5,2744.0,0.72881]
[1739791804791,0.5793,2744.5,2744.0,3.2078]
[1739791804991,6.33007216,2745.2,2744.3,5.02964]
[1739791805195,8.86407216,2745.2,2745.0,0.72856]
[1739791805601,2.534,2745.5,2744.9,3.2078]
[1739791805796,2.534,2745.5,2745.1,0.72853]
[1739791806101,3.12227216,2745.2,2745.0,0.5459]
[1739791807098,3.12227216,2745.2,2744.8,0.7340707]
[1739791807295,3.12227216,2745.2,2744.8,0.0054607]
[1739791807499,3.12227216,2744.9,2744.8,0.0054607]
[1739791807701,3.12227216,2744.9,2744.8,0.7340707]
[1739791807894,1.0816607,2745.4,2744.8,0.0054607]
[1739791808101,6.93889216,2745.2,2744.8,0.7340607]
[1739791808302,6.21037216,2745.2,2744.8,0.0054607]
[1739791808502,6.21037216,2745.2,2744.9,0.72858]
[1739791808806,3.12227216,2745.2,2745.0,0.72854]
[1739791808999,3.12227216,2745.2,2745.1,0.528]
[1739791809494,0.5523607,2745.4,2745.1,0.528]
[1739791809704,0.5523607,2745.4,2745.3,0.72848]
[1739791809705,0.0054607,2745.4,2745.3,0.72848]
[1739791810010,0.0054607,2745.4,2745.1,0.528]
[1739791810306,3.12227216,2745.2,2744.8,0.0054607]
[1739791810508,0.72856,2745.0,2744.8,0.0054607]
[1739791810902,1.6715,2745.1,2744.9,0.72857]
[1739791811099,4.2045,2745.1,2744.8,0.0054607]
[1739791811298,4.2045,2745.1,2745.0,0.72856]
[1739791811608,0.72856,2745.0,2744.8,0.0054607]
[1739791811809,4.93304,2745.1,2744.8,0.0054607]
[1739791812109,0.72856,2745.0,2744.8,0.0054607]
[1739791812305,3.85085216,2744.9,2744.8,0.0054607]
[1739791812805,3.12227216,2744.9,2744.8,0.7340707]
[1739791813006,3.12227216,2744.9,2744.8,0.0054607]
[1739791813206,3.85085216,2744.9,2744.8,0.0054607]
[1739791813413,3.12227216,2744.9,2744.8,0.0054607]
[1739791813615,4.2045,2745.1,2744.8,0.0054607]
[1739791813813,3.6582,2745.1,2745.0,0.72856]
[1739791814018,4.38674,2745.1,2744.8,0.7340507]
[1739791814413,3.12227216,2744.9,2744.8,0.0054607]
[1739791815512,3.85085216,2744.9,2744.8,0.0054607]
[1739791816214,3.12227216,2744.9,2744.8,0.7340707]
[1739791816409,1.1252,2745.1,2744.8,0.0054607]
[1739791816610,3.1041,2745.1,2745.0,0.72856]
[1739791817320,3.1041,2745.1,2744.8,0.0054607]
[1739791817622,3.1041,2745.1,2745.0,0.72856]
[1739791818219,3.1041,2745.1,2744.8,0.0054607]
[1739791818523,3.1041,2745.1,2745.0,0.72856]
[1739791818915,0.0054607,2745.4,2745.3,0.72848]
[1739791819217,0.0054607,2745.4,2745.3,3.93628]
[1739791821612,0.0054607,2745.4,2745.3,0.02393574]
[1739791821815,0.0054607,2745.4,2745.3,0.75241574]
[1739791822017,0.0054607,2745.4,2745.3,0.761389]
[1739791823919,0.7339107,2745.4,2745.3,0.032909]
[1739791825120,0.0054607,2745.4,2745.3,0.761389]
[1739791826326,0.0054607,2745.4,2745.3,3.969189]
[1739791828421,0.0054607,2745.4,2745.3,3.98516002]
[1739791828929,0.0054607,2745.4,2745.3,3.99405431]
[1739791834038,0.7339107,2745.4,2745.3,0.05777431]
[1739791834336,3.2649107,2745.4,2745.3,0.05777431]
[1739791836335,2.5364607,2745.4,2745.3,0.78625431]
[1739791837533,3.2649107,2745.4,2745.3,0.05777431]
[1739791838337,0.0054607,2745.4,2745.3,0.78625431]
[1739791841937,0.0054607,2745.4,2745.3,0.05777431]
[1739791842244,2.5364607,2745.4,2745.3,0.78625431]
[1739791843331,0.0054607,2745.4,2745.3,0.78625431]
[1739791844135,0.00289919,2745.4,2745.3,0.78625431]
[1739791850738,0.00289919,2745.4,2745.3,1.35505431]
[1739791851949,0.00289919,2745.4,2745.3,1.91285431]
[1739791852644,3.12227216,2746.2,2746.1,0.72825]
[1739791852852,6.22657216,2746.2,2746.1,0.72825]
[1739791853143,0.5743,2746.2,2746.1,0.78602431]
[1739791855753,0.5743,2746.2,2746.1,0.05777431]
[1739791856848,1.30254,2746.2,2746.1,0.05777431]
[1739791857352,3.83254,2746.2,2746.1,0.05777431]
[1739791857553,3.1043,2746.2,2746.1,0.05777431]
[1739791857749,3.83254,2746.2,2746.1,0.05777431]
[1739791858450,3.1043,2746.2,2746.1,0.78604431]
[1739791858855,0.5743,2746.2,2746.1,0.78604431]
[1739791860852,1.30254,2746.2,2746.1,0.05777431]
[1739791861657,4.51034,2746.2,2746.1,0.05777431]
[1739791865452,9.7821,2746.2,2745.7,3.2078]
[1739791865653,0.72842,2745.6,2745.2,3.2078]
[1739791865860,3.12227216,2745.5,2745.4,0.72845]
[1739791866055,3.85070216,2745.5,2745.3,0.72846]
[1739791866260,3.12227216,2745.5,2745.2,3.9363]
[1739791866559,3.85072216,2745.5,2745.2,3.9363]
[1739791866751,3.85072216,2745.5,2745.3,0.72847]
[1739791866951,3.12227216,2745.5,2745.4,0.72845]
[1739791867652,3.25738,2745.7,2745.5,0.72842]
[1739791868454,0.72841,2745.6,2745.4,0.72844]
[1739791868648,1.27171,2745.6,2745.4,0.72844]
[1739791868959,0.5433,2745.6,2745.2,3.2078]
[1739791869156,0.5433,2745.6,2745.5,0.72843]
[1739791870059,0.5433,2745.6,2745.2,3.2078]
[1739791870259,0.72845,2745.4,2745.2,3.93629]
[1739791870661,0.72845,2745.4,2745.3,0.72848]
[1739791871060,4.37741216,2745.5,2745.3,0.72848]
[1739791871357,4.37741216,2745.5,2745.2,3.93629]
[1739791871358,0.72847,2745.4,2745.2,3.93629]
[1739791871662,3.64897216,2745.5,2745.2,3.9363]
[1739791871861,0.72846,2745.4,2745.3,0.72848]
[1739791872257,4.37741216,2745.5,2745.3,0.72848]
[1739791872469,0.72847,2745.4,2745.3,0.72847]
[1739791872667,0.72847,2745.4,2745.2,3.2078]
[1739791872867,0.72847,2745.4,2745.2,3.93629]
[1739791873263,0.72847,2745.4,2745.3,0.72848]
[1739791873563,0.72847,2745.4,2745.2,3.93628]
[1739791873761,0.72847,2745.4,2745.3,0.72848]
[1739791873961,3.64897216,2745.5,2745.2,3.93629]
[1739791874163,0.72847,2745.4,2745.2,3.2078]
[1739791874363,3.64897216,2745.5,2745.2,3.2078]
[1739791874565,4.37740216,2745.5,2745.3,0.72848]
[1739791874864,3.64897216,2745.5,2745.2,3.2078]
[1739791875064,0.72848,2745.3,2745.2,3.9363]
[1739791875260,0.72848,2745.3,2745.2,3.2078]
[1739791875465,0.72848,2745.3,2745.2,3.9363]
[1739791875664,3.64897216,2745.5,2745.2,3.2078]
[1739791875864,0.72847,2745.4,2745.3,0.72847]
[1739791876070,0.72848,2745.3,2745.2,3.93629]
[1739791877574,0.72846,2745.4,2745.3,0.72847]
[1739791877774,0.72848,2745.3,2745.2,3.9363]
[1739791878170,2.529,2745.4,2745.2,3.2078]
[1739791878472,2.529,2745.4,2745.3,0.72845]
[1739791879368,3.12227216,2745.5,2745.2,3.2078]
[1739791879570,5.65127216,2745.5,2745.4,0.72845]
[1739791880873,5.65127216,2745.5,2745.3,0.72846]
[1739791881075,0.72845,2745.4,2745.3,0.72846]
[1739791881277,6.37973216,2745.5,2745.4,0.72845]
[1739791883079,5.65127216,2745.5,2745.2,3.2078]
[1739791883282,0.72848,2745.3,2745.2,3.2078]
[1739791883483,5.65127216,2745.5,2745.2,3.2078]
[1739791883676,0.72846,2745.4,2745.3,0.72846]
[1739791883982,0.72848,2745.3,2745.2,3.9363]
[1739791884481,0.72848,2745.3,2745.2,3.2078]
[1739791885881,5.65127216,2745.5,2745.2,3.2078]
[1739791886081,2.528,2745.4,2745.2,3.2078]
[1739791886378,0.72848,2745.3,2745.2,3.2078]
[1739791887678,1.83218,2745.3,2745.2,3.2078]
[1739791889783,0.72856,2745.0,2744.9,3.7648]
[1739791889981,3.85083216,2745.0,2744.9,4.49338]
[1739791892683,6.37883216,2745.0,2744.9,4.49338]
[1739791899385,5.65027216,2745.0,2744.9,4.49338]
[1739791899686,1.27501,2745.2,2745.1,0.72853]
[1739791899889,0.72854,2745.1,2745.0,0.72855]
[1739791900084,0.72854,2745.1,2744.9,3.7648]
[1739791900085,3.80302,2745.2,2744.9,3.7648]
[1739791900277,3.0745,2745.2,2745.1,0.72853]
[1739791900481,3.80301,2745.2,2745.1,0.72853]
[1739791900677,0.72855,2745.1,2745.0,0.72855]
[1739791901080,0.72856,2745.0,2744.9,4.49338]
[1739791901482,3.0745,2745.2,2744.9,3.7648]
[1739791901688,0.72855,2745.1,2745.0,0.72855]
[1739791902082,3.80303,2745.2,2745.1,0.72853]
[1739791902283,3.80303,2745.2,2744.9,3.7648]
[1739791902284,0.72856,2745.1,2745.0,0.72855]
[1739791902687,3.80203,2745.2,2745.1,0.72853]
[1739791903386,3.25551,2745.2,2745.1,0.72851]
[1739791903793,2.527,2745.2,2745.1,0.72851]
[1739791903990,3.25551,2745.2,2745.1,1.29271]
[1739791906089,2.527,2745.2,2745.1,1.29271]
[1739791906295,3.12227216,2745.3,2745.1,1.29271]
[1739791906296,3.12227216,2745.3,2745.2,0.72851]
[1739791906595,3.85075216,2745.3,2745.2,0.72851]
[1739791906892,3.12227216,2745.3,2745.2,0.72851]
[1739791907093,3.12227216,2745.3,2745.1,0.5642]
[1739791907300,0.72851,2745.2,2745.1,0.5642]
[1739791907689,3.85076216,2745.3,2745.1,0.5642]
[1739791907900,3.85076216,2745.3,2745.1,1.29271]
[1739791908193,0.72851,2745.2,2745.1,0.5642]